[Event "Titled Tuesday Blitz June 20 Late 2023"]
[White "Goryachkina, Aleksandra"]
[Black "Baskakov, Egor"]
[WhiteFideId "4147103"]
[BlackFideId "24197866"]
[WhiteElo "2471"]
[BlackElo "2225"]
[Result "1-0"]
[Round "11"]
[TimeControl "180+2"]
[Date "2023.06.20"]
[WhiteClock "0:00:07"]
[BlackClock "0:00:05"]
[Board "21"]

1. e4 {[%clk 0:02:59]}  c5 {[%clk 0:03:00]} 2. Nf3 {[%clk 0:02:59]}  Nf6 {[%clk 0:03:01]} 3. Nc3 {[%clk 0:02:41]}  d5 {[%clk 0:02:59]} 4. exd5 {[%clk 0:02:41]}  Nxd5 {[%clk 0:03:00]} 5. Bc4 {[%clk 0:02:39]}  Nb6 {[%clk 0:02:59]} 6. Be2 {[%clk 0:02:39]}  Nc6 {[%clk 0:02:57]} 7. O-O {[%clk 0:02:39]}  e5 {[%clk 0:02:57]} 8. Bb5 {[%clk 0:02:38]}  f6 {[%clk 0:02:57]} 9. a4 {[%clk 0:02:31]}  Be7 {[%clk 0:02:36]} 10. a5 {[%clk 0:02:26]}  Nd5 {[%clk 0:02:36]} 11. a6 {[%clk 0:02:23]}  O-O {[%clk 0:02:35]} 12. Bc4 {[%clk 0:01:56]}  Nb4 {[%clk 0:02:34]} 13. Nxd5 {[%clk 0:01:47]}  Nxd5 {[%clk 0:02:35]} 14. c3 {[%clk 0:01:40]}  Kh8 {[%clk 0:02:33]} 15. axb7 {[%clk 0:01:21]}  Bxb7 {[%clk 0:02:32]} 16. d3 {[%clk 0:01:18]}  Qd7 {[%clk 0:02:23]} 17. Re1 {[%clk 0:01:09]}  Rfd8 {[%clk 0:02:12]} 18. h3 {[%clk 0:01:07]}  Nb6 {[%clk 0:02:12]} 19. Qe2 {[%clk 0:00:45]}  Nxc4 {[%clk 0:01:58]} 20. dxc4 {[%clk 0:00:45]}  e4 {[%clk 0:01:58]} 21. Nh2 {[%clk 0:00:43]}  f5 {[%clk 0:01:55]} 22. Bf4 {[%clk 0:00:41]}  Qe6 {[%clk 0:01:48]} 23. Qe3 {[%clk 0:00:35]}  Qxc4 {[%clk 0:01:32]} 24. Qg3 {[%clk 0:00:29]}  Rd3 {[%clk 0:01:26]} 25. Re3 {[%clk 0:00:29]}  Rxe3 {[%clk 0:01:06]} 26. fxe3 {[%clk 0:00:29]}  Bf6 {[%clk 0:00:46]} 27. Be5 {[%clk 0:00:24]}  Bxe5 {[%clk 0:00:43]} 28. Qxe5 {[%clk 0:00:24]}  Qe2 {[%clk 0:00:43]} 29. Nf1 {[%clk 0:00:24]}  h6 {[%clk 0:00:28]} 30. Qxc5 {[%clk 0:00:18]}  Qxb2 {[%clk 0:00:23]} 31. Rxa7 {[%clk 0:00:18]}  Rd8 {[%clk 0:00:15]} 32. Qe7 {[%clk 0:00:12]}  Rb8 {[%clk 0:00:13]} 33. Qc7 {[%clk 0:00:06]}  Rg8 {[%clk 0:00:08]} 34. Rxb7 {[%clk 0:00:06]}  Qe2 {[%clk 0:00:08]} 35. c4 {[%clk 0:00:06]}  Qd1 {[%clk 0:00:04]} 36. c5 {[%clk 0:00:06]}  Qa1 {[%clk 0:00:05]} 37. c6 {[%clk 0:00:05]}  Rf8 {[%clk 0:00:04]} 38. Rb8 {[%clk 0:00:05]}  Rxb8 {[%clk 0:00:03]} 39. Qxb8+ {[%clk 0:00:06]}  Kh7 {[%clk 0:00:04]} 40. c7 {[%clk 0:00:07]}  f4 {[%clk 0:00:04]} 41. c8=Q {[%clk 0:00:07]}  f3 {[%clk 0:00:05]} 42. Qg8+ {[%clk 0:00:07]}  Kg6 {[%clk 0:00:06]} 43. Qg3+ {[%clk 0:00:07]}  Kh5 {[%clk 0:00:05]} 44. Qg4# {[%clk 0:00:07]} 1-0


[Site "https://www.chess.com"]

[Event "Titled Tuesday Blitz June 20 Late 2023"]
[White "EREBUNI91"]
[Black "Moral Garcia, Serafin"]
[BlackFideId "2201925"]
[WhiteElo "2793"]
[BlackElo "2274"]
[Result "1/2-1/2"]
[Round "11"]
[TimeControl "180+2"]
[Date "2023.06.21"]
[WhiteClock "0:00:51"]
[BlackClock "0:00:45"]
[Board "22"]

1. e4 {[%clk 0:03:00]}  e5 {[%clk 0:02:59]} 2. Nf3 {[%clk 0:03:00]}  Nf6 {[%clk 0:03:00]} 3. d4 {[%clk 0:03:00]}  Nxe4 {[%clk 0:02:59]} 4. Bd3 {[%clk 0:03:00]}  d5 {[%clk 0:03:00]} 5. Nxe5 {[%clk 0:03:00]}  Nd7 {[%clk 0:03:00]} 6. Nxd7 {[%clk 0:03:00]}  Bxd7 {[%clk 0:02:59]} 7. O-O {[%clk 0:03:01]}  Bd6 {[%clk 0:02:55]} 8. Nd2 {[%clk 0:03:00]}  Nxd2 {[%clk 0:02:54]} 9. Bxd2 {[%clk 0:03:00]}  O-O {[%clk 0:02:50]} 10. Qh5 {[%clk 0:03:01]}  f5 {[%clk 0:02:50]} 11. Rfe1 {[%clk 0:03:00]}  Qf6 {[%clk 0:02:45]} 12. Qf3 {[%clk 0:02:43]}  c6 {[%clk 0:02:43]} 13. Bf4 {[%clk 0:02:41]}  Rae8 {[%clk 0:02:27]} 14. Qg3 {[%clk 0:02:40]}  Bxf4 {[%clk 0:02:20]} 15. Qxf4 {[%clk 0:02:41]}  g5 {[%clk 0:02:19]} 16. Qc7 {[%clk 0:02:40]}  Bc8 {[%clk 0:02:13]} 17. c3 {[%clk 0:02:23]}  Qf7 {[%clk 0:02:09]} 18. Qd6 {[%clk 0:02:21]}  Re6 {[%clk 0:02:05]} 19. Qg3 {[%clk 0:02:11]}  h6 {[%clk 0:01:56]} 20. f4 {[%clk 0:02:08]}  Rfe8 {[%clk 0:01:43]} 21. Rxe6 {[%clk 0:01:55]}  Qxe6 {[%clk 0:01:43]} 22. fxg5 {[%clk 0:01:56]}  Qe3+ {[%clk 0:01:43]} 23. Qxe3 {[%clk 0:01:30]}  Rxe3 {[%clk 0:01:42]} 24. Rd1 {[%clk 0:01:27]}  hxg5 {[%clk 0:01:41]} 25. Kf2 {[%clk 0:01:27]}  f4 {[%clk 0:01:41]} 26. h3 {[%clk 0:01:18]}  Kg7 {[%clk 0:01:38]} 27. Be2 {[%clk 0:01:10]}  Bf5 {[%clk 0:01:32]} 28. Bf3 {[%clk 0:01:09]}  Kf6 {[%clk 0:01:30]} 29. Re1 {[%clk 0:01:01]}  Rxe1 {[%clk 0:01:28]} 30. Kxe1 {[%clk 0:01:02]}  b6 {[%clk 0:01:04]} 31. Bg4 {[%clk 0:00:55]}  Bxg4 {[%clk 0:00:55]} 32. hxg4 {[%clk 0:00:55]}  Ke6 {[%clk 0:00:55]} 33. Ke2 {[%clk 0:00:53]}  Kd6 {[%clk 0:00:54]} 34. Kd3 {[%clk 0:00:53]}  Ke6 {[%clk 0:00:46]} 35. Ke2 {[%clk 0:00:51]}  Kd6 {[%clk 0:00:45]} 36. Kd3 {[%clk 0:00:51]} 1/2-1/2


[Site "https://www.chess.com"]

[Event "Titled Tuesday Blitz June 20 Late 2023"]
[White "Bjelobrk, Igor"]
[Black "Fodor, Tamas Jr."]
[WhiteFideId "4300726"]
[BlackFideId "723762"]
[WhiteElo "2319"]
[BlackElo "2504"]
[Result "0-1"]
[Round "11"]
[TimeControl "180+2"]
[Date "2023.06.20"]
[WhiteClock "0:00:10"]
[BlackClock "0:00:39"]
[Board "24"]

1. d4 {[%clk 0:02:24]}  d5 {[%clk 0:02:59]} 2. c4 {[%clk 0:02:24]}  e6 {[%clk 0:02:59]} 3. Nf3 {[%clk 0:02:24]}  c6 {[%clk 0:02:57]} 4. g3 {[%clk 0:02:23]}  dxc4 {[%clk 0:02:55]} 5. Bg2 {[%clk 0:02:22]}  b5 {[%clk 0:02:55]} 6. O-O {[%clk 0:02:21]}  Bb7 {[%clk 0:02:52]} 7. b3 {[%clk 0:02:20]}  cxb3 {[%clk 0:02:50]} 8. Qxb3 {[%clk 0:02:21]}  a6 {[%clk 0:02:50]} 9. Rd1 {[%clk 0:02:17]}  Nf6 {[%clk 0:02:49]} 10. Nc3 {[%clk 0:02:06]}  Nbd7 {[%clk 0:02:45]} 11. Ne5 {[%clk 0:01:59]}  Rc8 {[%clk 0:02:39]} 12. Bg5 {[%clk 0:01:43]}  Be7 {[%clk 0:02:31]} 13. a4 {[%clk 0:01:39]}  b4 {[%clk 0:02:27]} 14. a5 {[%clk 0:01:39]}  O-O {[%clk 0:02:23]} 15. Nxd7 {[%clk 0:01:36]}  Nxd7 {[%clk 0:02:18]} 16. Bxe7 {[%clk 0:01:35]}  Qxe7 {[%clk 0:02:19]} 17. Na4 {[%clk 0:01:36]}  Rb8 {[%clk 0:02:11]} 18. e3 {[%clk 0:01:29]}  c5 {[%clk 0:02:08]} 19. d5 {[%clk 0:01:06]}  exd5 {[%clk 0:01:57]} 20. Bxd5 {[%clk 0:01:06]}  Ne5 {[%clk 0:01:56]} 21. Rac1 {[%clk 0:00:59]}  c4 {[%clk 0:01:47]} 22. Rxc4 {[%clk 0:00:47]}  Bxd5 {[%clk 0:01:38]} 23. Rxd5 {[%clk 0:00:46]}  Nxc4 {[%clk 0:01:37]} 24. Qxc4 {[%clk 0:00:46]}  b3 {[%clk 0:01:37]} 25. Nb6 {[%clk 0:00:46]}  Qa3 {[%clk 0:01:36]} 26. Qc3 {[%clk 0:00:36]}  Qa2 {[%clk 0:01:26]} 27. Rd2 {[%clk 0:00:34]}  Qb1+ {[%clk 0:01:26]} 28. Kg2 {[%clk 0:00:34]}  Qe4+ {[%clk 0:01:12]} 29. f3 {[%clk 0:00:34]}  Qe6 {[%clk 0:01:11]} 30. Rb2 {[%clk 0:00:33]}  h6 {[%clk 0:01:09]} 31. Rxb3 {[%clk 0:00:33]}  Rfd8 {[%clk 0:01:09]} 32. Rb2 {[%clk 0:00:32]}  Rb7 {[%clk 0:01:08]} 33. Rc2 {[%clk 0:00:30]}  Re7 {[%clk 0:01:07]} 34. e4 {[%clk 0:00:28]}  h5 {[%clk 0:01:05]} 35. h4 {[%clk 0:00:28]}  Qe5 {[%clk 0:01:00]} 36. Nd5 {[%clk 0:00:25]}  Ree8 {[%clk 0:00:49]} 37. Qc4 {[%clk 0:00:19]}  Rc8 {[%clk 0:00:43]} 38. Qxc8 {[%clk 0:00:17]}  Rxc8 {[%clk 0:00:44]} 39. Rxc8+ {[%clk 0:00:17]}  Kh7 {[%clk 0:00:44]} 40. Rc6 {[%clk 0:00:16]}  Qb2+ {[%clk 0:00:42]} 41. Kh3 {[%clk 0:00:17]}  Qb5 {[%clk 0:00:41]} 42. Rc7 {[%clk 0:00:14]}  Qf1+ {[%clk 0:00:39]} 43. Kh2 {[%clk 0:00:13]}  Qf2+ {[%clk 0:00:39]} 44. Kh3 {[%clk 0:00:13]}  Qxf3 {[%clk 0:00:40]} 45. Kh2 {[%clk 0:00:10]}  Qe2+ {[%clk 0:00:40]} 46. Kh3 {[%clk 0:00:10]}  Qxe4 {[%clk 0:00:39]} 47. Nf4 {[%clk 0:00:10]}  Qh1# {[%clk 0:00:39]} 0-1


[Site "https://www.chess.com"]

[Event "Titled Tuesday Blitz June 20 Late 2023"]
[White "WindWhistler11"]
[Black "Oro, Faustino"]
[BlackFideId "20000197"]
[WhiteElo "2576"]
[BlackElo "1984"]
[Result "0-1"]
[Round "11"]
[TimeControl "180+2"]
[Date "2023.06.20"]
[WhiteClock "0:00:05"]
[BlackClock "0:00:22"]
[Board "25"]

1. Nf3 {[%clk 0:02:55]}  Nf6 {[%clk 0:02:59]} 2. g3 {[%clk 0:02:54]}  d5 {[%clk 0:02:59]} 3. c4 {[%clk 0:02:54]}  c6 {[%clk 0:02:56]} 4. Bg2 {[%clk 0:02:54]}  Bf5 {[%clk 0:02:56]} 5. b3 {[%clk 0:02:50]}  e6 {[%clk 0:02:56]} 6. O-O {[%clk 0:02:50]}  h6 {[%clk 0:02:56]} 7. Bb2 {[%clk 0:02:51]}  Be7 {[%clk 0:02:57]} 8. d3 {[%clk 0:02:51]}  O-O {[%clk 0:02:57]} 9. Nbd2 {[%clk 0:02:52]}  Nbd7 {[%clk 0:02:57]} 10. Qc2 {[%clk 0:02:53]}  Bh7 {[%clk 0:02:57]} 11. Rad1 {[%clk 0:02:52]}  a5 {[%clk 0:02:55]} 12. a3 {[%clk 0:02:50]}  Qc7 {[%clk 0:02:47]} 13. cxd5 {[%clk 0:02:42]}  exd5 {[%clk 0:02:47]} 14. e4 {[%clk 0:02:37]}  dxe4 {[%clk 0:02:26]} 15. dxe4 {[%clk 0:02:33]}  Rfe8 {[%clk 0:02:25]} 16. Nd4 {[%clk 0:02:28]}  Rad8 {[%clk 0:02:19]} 17. Nf5 {[%clk 0:02:15]}  Bxf5 {[%clk 0:02:00]} 18. exf5 {[%clk 0:02:16]}  Nb6 {[%clk 0:01:53]} 19. Nf3 {[%clk 0:01:56]}  Nfd5 {[%clk 0:01:44]} 20. Rfe1 {[%clk 0:01:29]}  Bf6 {[%clk 0:01:44]} 21. Bxf6 {[%clk 0:01:20]}  Nxf6 {[%clk 0:01:44]} 22. Qc5 {[%clk 0:01:20]}  Nbd5 {[%clk 0:01:12]} 23. Rxe8+ {[%clk 0:01:19]}  Rxe8 {[%clk 0:01:12]} 24. Nd4 {[%clk 0:01:19]}  Re5 {[%clk 0:01:09]} 25. Qc2 {[%clk 0:00:59]}  Qb6 {[%clk 0:01:06]} 26. Bf3 {[%clk 0:00:50]}  Nc7 {[%clk 0:00:58]} 27. Kg2 {[%clk 0:00:48]}  Na6 {[%clk 0:00:51]} 28. Rd3 {[%clk 0:00:38]}  Nc5 {[%clk 0:00:50]} 29. Re3 {[%clk 0:00:32]}  Rxe3 {[%clk 0:00:48]} 30. fxe3 {[%clk 0:00:33]}  Ncd7 {[%clk 0:00:48]} 31. Qc3 {[%clk 0:00:20]}  Ne5 {[%clk 0:00:45]} 32. Be2 {[%clk 0:00:20]}  Nd5 {[%clk 0:00:42]} 33. Qd2 {[%clk 0:00:20]}  Qc5 {[%clk 0:00:40]} 34. Bf3 {[%clk 0:00:18]}  Nxf3 {[%clk 0:00:39]} 35. Kxf3 {[%clk 0:00:17]}  Qxa3 {[%clk 0:00:39]} 36. e4 {[%clk 0:00:17]}  Nf6 {[%clk 0:00:37]} 37. e5 {[%clk 0:00:15]}  Nd5 {[%clk 0:00:37]} 38. e6 {[%clk 0:00:15]}  c5 {[%clk 0:00:36]} 39. Nb5 {[%clk 0:00:14]}  Qxb3+ {[%clk 0:00:36]} 40. Kg2 {[%clk 0:00:12]}  Ne3+ {[%clk 0:00:36]} 41. Kh3 {[%clk 0:00:11]}  Nxf5 {[%clk 0:00:31]} 42. Qd8+ {[%clk 0:00:08]}  Kh7 {[%clk 0:00:31]} 43. e7 {[%clk 0:00:04]}  Nxe7 {[%clk 0:00:31]} 44. Qxe7 {[%clk 0:00:05]}  Qxb5 {[%clk 0:00:31]} 45. Qxf7 {[%clk 0:00:06]}  Qd3 {[%clk 0:00:25]} 46. Qxb7 {[%clk 0:00:06]}  c4 {[%clk 0:00:25]} 47. Qa6 {[%clk 0:00:05]}  Qf5+ {[%clk 0:00:22]} 48. g4 {[%clk 0:00:04]}  Qf3+ {[%clk 0:00:21]} 49. Kh4 {[%clk 0:00:05]}  g5+ {[%clk 0:00:21]} 50. Kh5 {[%clk 0:00:05]}  Qh3# {[%clk 0:00:22]} 0-1


[Site "https://www.chess.com"]

[Event "Titled Tuesday Blitz June 20 Late 2023"]
[White "Isajevsky, Anton"]
[Black "Licznerski, Lukasz"]
[WhiteFideId "4142500"]
[BlackFideId "1179250"]
[WhiteElo "2510"]
[BlackElo "2453"]
[Result "0-1"]
[Round "11"]
[TimeControl "180+2"]
[Date "2023.06.20"]
[WhiteClock "0:00:00"]
[BlackClock "0:00:16"]
[Board "28"]

1. c4 {[%clk 0:02:56]}  Nf6 {[%clk 0:02:59]} 2. Nc3 {[%clk 0:02:56]}  d5 {[%clk 0:02:58]} 3. cxd5 {[%clk 0:02:55]}  Nxd5 {[%clk 0:02:59]} 4. Nf3 {[%clk 0:02:56]}  g6 {[%clk 0:02:59]} 5. Qb3 {[%clk 0:02:56]}  Nb6 {[%clk 0:02:59]} 6. d4 {[%clk 0:02:55]}  Bg7 {[%clk 0:02:59]} 7. Bf4 {[%clk 0:02:51]}  O-O {[%clk 0:02:58]} 8. Rd1 {[%clk 0:02:50]}  Bg4 {[%clk 0:02:13]} 9. e3 {[%clk 0:02:48]}  N8d7 {[%clk 0:02:05]} 10. Be2 {[%clk 0:02:47]}  c6 {[%clk 0:02:02]} 11. h3 {[%clk 0:02:38]}  Bxf3 {[%clk 0:02:02]} 12. Bxf3 {[%clk 0:02:38]}  e5 {[%clk 0:01:57]} 13. dxe5 {[%clk 0:02:30]}  Qe7 {[%clk 0:01:57]} 14. e6 {[%clk 0:02:29]}  Qxe6 {[%clk 0:01:51]} 15. Qxe6 {[%clk 0:02:29]}  fxe6 {[%clk 0:01:52]} 16. Ke2 {[%clk 0:02:15]}  Ne5 {[%clk 0:01:39]} 17. Bxe5 {[%clk 0:00:53]}  Bxe5 {[%clk 0:01:37]} 18. Rd3 {[%clk 0:00:53]}  Nc4 {[%clk 0:01:24]} 19. Rb1 {[%clk 0:00:48]}  Rad8 {[%clk 0:01:22]} 20. b3 {[%clk 0:00:44]}  Rxd3 {[%clk 0:01:16]} 21. Kxd3 {[%clk 0:00:44]}  Na3 {[%clk 0:01:17]} 22. Rc1 {[%clk 0:00:42]}  Rd8+ {[%clk 0:01:14]} 23. Ke2 {[%clk 0:00:42]}  Kf7 {[%clk 0:00:59]} 24. Be4 {[%clk 0:00:41]}  Ke7 {[%clk 0:00:58]} 25. f4 {[%clk 0:00:42]}  Bg7 {[%clk 0:00:56]} 26. Bd3 {[%clk 0:00:40]}  a6 {[%clk 0:00:36]} 27. Ne4 {[%clk 0:00:39]}  Nb5 {[%clk 0:00:36]} 28. a4 {[%clk 0:00:39]}  Nc7 {[%clk 0:00:36]} 29. Nc5 {[%clk 0:00:32]}  Rb8 {[%clk 0:00:35]} 30. e4 {[%clk 0:00:28]}  Bd4 {[%clk 0:00:34]} 31. b4 {[%clk 0:00:17]}  Bxc5 {[%clk 0:00:28]} 32. Rxc5 {[%clk 0:00:18]}  Kd6 {[%clk 0:00:28]} 33. Ke3 {[%clk 0:00:16]}  b6 {[%clk 0:00:26]} 34. Rc2 {[%clk 0:00:15]}  a5 {[%clk 0:00:22]} 35. bxa5 {[%clk 0:00:14]}  bxa5 {[%clk 0:00:23]} 36. g4 {[%clk 0:00:08]}  Rb3 {[%clk 0:00:19]} 37. h4 {[%clk 0:00:06]}  Na6 {[%clk 0:00:18]} 38. e5+ {[%clk 0:00:06]}  Kd5 {[%clk 0:00:14]} 39. Ke2 {[%clk 0:00:04]}  Rxd3 {[%clk 0:00:14]} 40. Kxd3 {[%clk 0:00:03]}  Nb4+ {[%clk 0:00:14]} 41. Kc3 {[%clk 0:00:03]}  Nxc2 {[%clk 0:00:15]} 42. Kxc2 {[%clk 0:00:00]}  Ke4 {[%clk 0:00:16]} 0-1


[Site "https://www.chess.com"]

[Event "Titled Tuesday Blitz June 20 Late 2023"]
[White "Cardoso Cardoso, Jose Gabriel"]
[Black "TimGrutter03"]
[WhiteFideId "4430492"]
[WhiteElo "2484"]
[BlackElo "2619"]
[Result "0-1"]
[Round "11"]
[TimeControl "180+2"]
[Date "2023.06.20"]
[WhiteClock "0:00:49"]
[BlackClock "0:00:05"]
[Board "29"]

1. d4 {[%clk 0:03:00]}  Nf6 {[%clk 0:02:50]} 2. Nc3 {[%clk 0:03:01]}  d5 {[%clk 0:02:49]} 3. Bf4 {[%clk 0:03:01]}  g6 {[%clk 0:02:38]} 4. e3 {[%clk 0:03:02]}  Bg7 {[%clk 0:02:38]} 5. h4 {[%clk 0:03:02]}  h6 {[%clk 0:02:37]} 6. Nf3 {[%clk 0:03:02]}  O-O {[%clk 0:02:36]} 7. Ne5 {[%clk 0:03:03]}  Nbd7 {[%clk 0:02:36]} 8. Bd3 {[%clk 0:03:03]}  c5 {[%clk 0:02:35]} 9. f3 {[%clk 0:02:59]}  cxd4 {[%clk 0:02:30]} 10. exd4 {[%clk 0:02:59]}  Qb6 {[%clk 0:02:30]} 11. Qd2 {[%clk 0:02:04]}  Qxd4 {[%clk 0:02:27]} 12. Nxd7 {[%clk 0:02:03]}  Bxd7 {[%clk 0:02:26]} 13. Bxh6 {[%clk 0:02:03]}  e5 {[%clk 0:02:00]} 14. Bxg7 {[%clk 0:01:50]}  Kxg7 {[%clk 0:02:01]} 15. h5 {[%clk 0:01:47]}  e4 {[%clk 0:01:44]} 16. h6+ {[%clk 0:01:47]}  Kh7 {[%clk 0:01:36]} 17. Be2 {[%clk 0:01:48]}  Qxd2+ {[%clk 0:01:10]} 18. Kxd2 {[%clk 0:01:49]}  Bc6 {[%clk 0:00:49]} 19. g4 {[%clk 0:01:44]}  exf3 {[%clk 0:00:47]} 20. Bd3 {[%clk 0:01:17]}  Nxg4 {[%clk 0:00:39]} 21. Raf1 {[%clk 0:01:17]}  d4 {[%clk 0:00:33]} 22. Ne4 {[%clk 0:01:17]}  Bxe4 {[%clk 0:00:14]} 23. Bxe4 {[%clk 0:01:18]}  f2 {[%clk 0:00:11]} 24. Bf3 {[%clk 0:01:18]}  f5 {[%clk 0:00:09]} 25. Rh4 {[%clk 0:01:13]}  Rae8 {[%clk 0:00:04]} 26. Bxg4 {[%clk 0:01:09]}  fxg4 {[%clk 0:00:05]} 27. Rxg4 {[%clk 0:01:10]}  Kxh6 {[%clk 0:00:05]} 28. Rg2 {[%clk 0:01:09]}  g5 {[%clk 0:00:04]} 29. Kd3 {[%clk 0:01:04]}  Kh5 {[%clk 0:00:03]} 30. Rgxf2 {[%clk 0:01:02]}  Rxf2 {[%clk 0:00:02]} 31. Rxf2 {[%clk 0:01:03]}  g4 {[%clk 0:00:03]} 32. Rf7 {[%clk 0:01:04]}  Rg8 {[%clk 0:00:02]} 33. Ke2 {[%clk 0:01:02]}  g3 {[%clk 0:00:02]} 34. Kf1 {[%clk 0:01:02]}  Kg4 {[%clk 0:00:03]} 35. Kg2 {[%clk 0:01:02]}  Re8 {[%clk 0:00:01]} 36. Rg7+ {[%clk 0:01:02]}  Kf4 {[%clk 0:00:02]} 37. Rf7+ {[%clk 0:01:02]}  Ke3 {[%clk 0:00:02]} 38. Rxb7 {[%clk 0:00:57]}  Kd2 {[%clk 0:00:02]} 39. Rd7 {[%clk 0:00:57]}  Re4 {[%clk 0:00:01]} 40. c3 {[%clk 0:00:55]}  d3 {[%clk 0:00:02]} 41. b3 {[%clk 0:00:45]}  Kc2 {[%clk 0:00:02]} 42. c4 {[%clk 0:00:46]}  d2 {[%clk 0:00:03]} 43. Kf3 {[%clk 0:00:45]}  Re1 {[%clk 0:00:02]} 44. c5 {[%clk 0:00:42]}  d1=Q+ {[%clk 0:00:02]} 45. Rxd1 {[%clk 0:00:43]}  Kxd1 {[%clk 0:00:02]} 46. b4 {[%clk 0:00:44]}  Kc2 {[%clk 0:00:01]} 47. Kxg3 {[%clk 0:00:45]}  Re7 {[%clk 0:00:01]} 48. c6 {[%clk 0:00:46]}  Kc3 {[%clk 0:00:01]} 49. b5 {[%clk 0:00:47]}  Kb4 {[%clk 0:00:02]} 50. a4 {[%clk 0:00:47]}  Kxa4 {[%clk 0:00:02]} 51. b6 {[%clk 0:00:48]}  axb6 {[%clk 0:00:03]} 52. Kf4 {[%clk 0:00:48]}  Rc7 {[%clk 0:00:03]} 53. Ke5 {[%clk 0:00:49]}  Rxc6 {[%clk 0:00:04]} 54. Kd5 {[%clk 0:00:49]}  Rc8 {[%clk 0:00:05]} 0-1


[Site "https://www.chess.com"]

[Event "Titled Tuesday Blitz June 20 Late 2023"]
[White "Ladron De Guevara Pinto, Paolo"]
[Black "Bryakin, Mikhail"]
[WhiteFideId "2290847"]
[BlackFideId "4165314"]
[WhiteElo "2398"]
[BlackElo "2464"]
[Result "0-1"]
[Round "11"]
[TimeControl "180+2"]
[Date "2023.06.20"]
[WhiteClock "0:00:00"]
[BlackClock "0:00:56"]
[Board "31"]

1. Nf3 {[%clk 0:03:00]}  c6 {[%clk 0:01:39]} 2. g3 {[%clk 0:03:01]}  g6 {[%clk 0:01:38]} 3. Bg2 {[%clk 0:03:01]}  Bg7 {[%clk 0:01:39]} 4. O-O {[%clk 0:03:01]}  Nf6 {[%clk 0:01:37]} 5. d3 {[%clk 0:03:00]}  O-O {[%clk 0:01:38]} 6. e4 {[%clk 0:03:00]}  d5 {[%clk 0:01:39]} 7. Qe2 {[%clk 0:02:51]}  b6 {[%clk 0:01:38]} 8. e5 {[%clk 0:02:44]}  Ne8 {[%clk 0:01:38]} 9. h4 {[%clk 0:02:41]}  h5 {[%clk 0:01:37]} 10. c4 {[%clk 0:02:38]}  Bg4 {[%clk 0:01:37]} 11. Nc3 {[%clk 0:02:36]}  d4 {[%clk 0:01:34]} 12. Nb1 {[%clk 0:02:29]}  f6 {[%clk 0:01:32]} 13. exf6 {[%clk 0:02:17]}  exf6 {[%clk 0:01:32]} 14. Bf4 {[%clk 0:02:02]}  Nd6 {[%clk 0:01:29]} 15. Qc2 {[%clk 0:01:24]}  Nf7 {[%clk 0:01:14]} 16. Re1 {[%clk 0:01:18]}  Na6 {[%clk 0:01:13]} 17. a3 {[%clk 0:01:15]}  Rc8 {[%clk 0:01:08]} 18. b4 {[%clk 0:01:14]}  c5 {[%clk 0:01:08]} 19. b5 {[%clk 0:01:13]}  Nc7 {[%clk 0:01:09]} 20. a4 {[%clk 0:01:08]}  Ne6 {[%clk 0:01:08]} 21. Bd2 {[%clk 0:01:00]}  Bf5 {[%clk 0:01:07]} 22. a5 {[%clk 0:00:58]}  Qc7 {[%clk 0:01:05]} 23. axb6 {[%clk 0:00:48]}  axb6 {[%clk 0:01:06]} 24. Nh2 {[%clk 0:00:41]}  Rfe8 {[%clk 0:01:04]} 25. Bd5 {[%clk 0:00:26]}  Kh7 {[%clk 0:01:04]} 26. Qd1 {[%clk 0:00:20]}  Ne5 {[%clk 0:01:03]} 27. Bxe6 {[%clk 0:00:14]}  Rxe6 {[%clk 0:01:04]} 28. Bf4 {[%clk 0:00:14]}  Rce8 {[%clk 0:01:02]} 29. Nd2 {[%clk 0:00:12]}  Bxd3 {[%clk 0:01:01]} 30. Bxe5 {[%clk 0:00:08]}  fxe5 {[%clk 0:01:02]} 31. Nhf3 {[%clk 0:00:08]}  Bf6 {[%clk 0:01:01]} 32. Ne4 {[%clk 0:00:07]}  Bxc4 {[%clk 0:00:58]} 33. Neg5+ {[%clk 0:00:06]}  Bxg5 {[%clk 0:00:58]} 34. Nxg5+ {[%clk 0:00:07]}  Kg7 {[%clk 0:00:59]} 35. Nxe6+ {[%clk 0:00:07]}  Rxe6 {[%clk 0:01:00]} 36. Qc1 {[%clk 0:00:05]}  Bd5 {[%clk 0:01:00]} 37. Qg5 {[%clk 0:00:05]}  Qe7 {[%clk 0:00:58]} 38. Qxe7+ {[%clk 0:00:03]}  Rxe7 {[%clk 0:00:59]} 39. Ra6 {[%clk 0:00:03]}  Re6 {[%clk 0:00:59]} 40. Rea1 {[%clk 0:00:02]}  c4 {[%clk 0:00:59]} 41. Ra7+ {[%clk 0:00:01]}  Kf6 {[%clk 0:01:00]} 42. Re1 {[%clk 0:00:01]}  c3 {[%clk 0:00:59]} 43. Rd7 {[%clk 0:00:02]}  Bc4 {[%clk 0:00:59]} 44. f4 {[%clk 0:00:02]}  d3 {[%clk 0:00:56]} 45. fxe5+ {[%clk 0:00:02]}  Rxe5 {[%clk 0:00:55]} 46. Rd6+ {[%clk 0:00:03]}  Kf5 {[%clk 0:00:56]} 47. Rf1+ {[%clk 0:00:03]}  Ke4 {[%clk 0:00:56]} 48. Rdf6 {[%clk 0:00:02]}  d2 {[%clk 0:00:54]} 49. R6f4+ {[%clk 0:00:03]}  Kd5 {[%clk 0:00:55]} 50. Rd1 {[%clk 0:00:02]}  Bb3 {[%clk 0:00:55]} 51. Rf3 {[%clk 0:00:02]}  Bxd1 {[%clk 0:00:55]} 52. Rxc3 {[%clk 0:00:02]}  Kd4 {[%clk 0:00:55]} 53. Rc2 {[%clk 0:00:00]}  Bxc2 {[%clk 0:00:56]} 0-1


[Site "https://www.chess.com"]

[Event "Titled Tuesday Blitz June 20 Late 2023"]
[White "Dushyant Sharma"]
[Black "Santos Ruiz, Miguel"]
[WhiteFideId "25065130"]
[BlackFideId "22291482"]
[WhiteElo "2198"]
[BlackElo "2499"]
[Result "0-1"]
[Round "11"]
[TimeControl "180+2"]
[Date "2023.06.20"]
[WhiteClock "0:00:57"]
[BlackClock "0:02:30"]
[Board "34"]

1. e4 {[%clk 0:03:00]}  c6 {[%clk 0:03:00]} 2. d4 {[%clk 0:02:52]}  d5 {[%clk 0:03:01]} 3. exd5 {[%clk 0:02:52]}  cxd5 {[%clk 0:03:02]} 4. Bd3 {[%clk 0:02:52]}  Nc6 {[%clk 0:03:03]} 5. c3 {[%clk 0:02:53]}  g6 {[%clk 0:02:58]} 6. Nf3 {[%clk 0:02:53]}  Qc7 {[%clk 0:02:58]} 7. O-O {[%clk 0:02:54]}  Bf5 {[%clk 0:02:58]} 8. Bxf5 {[%clk 0:02:53]}  gxf5 {[%clk 0:02:59]} 9. Re1 {[%clk 0:02:53]}  Nf6 {[%clk 0:02:59]} 10. Nbd2 {[%clk 0:02:53]}  e6 {[%clk 0:02:59]} 11. Nf1 {[%clk 0:02:53]}  Bd6 {[%clk 0:02:59]} 12. N3d2 {[%clk 0:02:32]}  Rg8 {[%clk 0:02:57]} 13. f3 {[%clk 0:02:24]}  Rg6 {[%clk 0:02:51]} 14. Nb3 {[%clk 0:02:19]}  O-O-O {[%clk 0:02:51]} 15. Bd2 {[%clk 0:02:00]}  Rdg8 {[%clk 0:02:51]} 16. Re2 {[%clk 0:02:01]}  Nh5 {[%clk 0:02:41]} 17. Nc5 {[%clk 0:01:54]}  Bxc5 {[%clk 0:02:37]} 18. dxc5 {[%clk 0:01:55]}  Ne5 {[%clk 0:02:37]} 19. Rf2 {[%clk 0:01:41]}  Nd3 {[%clk 0:02:34]} 20. g3 {[%clk 0:01:21]}  Nxg3 {[%clk 0:02:29]} 21. Nxg3 {[%clk 0:00:57]}  Rxg3+ {[%clk 0:02:30]} 0-1


[Site "https://www.chess.com"]